[Event "FTX Crypto Cup MCCT 2022"]
[Site "Miami"]
[Date "2022.08.11"]
[Round "5.1"]
[White "Aronian, Levon"]
[Black "Giri, Anish"]
[Result "1/2-1/2"]
[ECO "A34"]
[WhiteElo "2775"]
[BlackElo "2760"]
[Annotator "TA"]
[PlyCount "140"]
[EventDate "2022.08.10"]
[EventType "tourn"]
[EventCountry "USA"]
[SourceTitle "playchess.com"]
[Source "ChessBase"]
[SourceQuality "1"]
[TimeControl "900+10"]

{[%evp 11,140,4,10,0,18,20,16,-11,47,36,41,31,58,51,66,29,60,64,61,58,54,0,21,-51,-43,-53,-12,-33,-34,-32,-21,-36,-33,-35,-6,-8,-15,-8,-14,-6,0,0,0,-39,-18,-14,0,0,0,0,0,0,0,0,13,6,13,0,0,0,7,8,13,0,29,26,26,0,12,0,0,0,0,0,0,0,0,0,0,-8,-6,-20,0,0,0,0,0,0,0,0,0,0,0,0,0,0,0,0,0,0,0,0,0,0,0,0,0,0,0,0,0,0,0,0,0,0,0,0,0,0,0,0,0,0,0,0,0,0,0,0,0]} 1. c4 {[%emt 0:00:00]} Nf6 {[%emt 0:00:00]} 2. Nc3 {[%emt 0:00:02]} c5 {[%emt 0:00:02]} 3. Nf3 {[%emt 0:00:56]} e6 {[%emt 0:00:02][%cal Be7e6,Be6d5,Bd5d4][%mdl 32]} 4. e4 {[%emt 0:00:18][%cal Be2e4,Be4e5][%mdl 32]} Nc6 {[%emt 0:00:10]} 5. Be2 {[%emt 0:00:02]} d5 {[%emt 0:00:15]} 6. cxd5 {[%emt 0:00:01]} exd5 {[%emt 0:00:03] [#] And now ...d4 would win.} 7. e5 {[%emt 0:00:01] A34: Symmetrical English: 2 Nc3, lines with ...d5.} Ng4 {[%emt 0:02:05]} 8. Bb5 {[%emt 0:00:59]} d4 {[%emt 0:00:52]} 9. Ne4 {[%emt 0:00:50] [#]} Be7 $146 {[%emt 0:00:59]} (9... Bd7 $11) ({Predecessor:} 9... Bd7 10. O-O Ngxe5 11. Re1 Be7 12. Nxc5 Nxf3+ 13. Qxf3 O-O 14. Nxd7 Qxd7 15. d3 Bb4 {1-0 (50) Ehlvest,J (2517)-Bagaturov,G (2413) Acqui Terme 2022}) 10. Bxc6+ $14 {[%emt 0:01:51]} bxc6 {[%emt 0:00:03]} 11. d3 {[%emt 0:00:00] Hoping for h3.} Qd5 {[%emt 0:00:44]} 12. Bf4 {[%emt 0:00:52]} f6 {[%emt 0:08:15][%cal Bf7f6,Bf6e5][%mdl 32]} 13. O-O {[%emt 0:00:03]} ({But not} 13. exf6 Nxf6 14. O-O O-O $11) 13... fxe5 {[%emt 0:00:32]} 14. Bg3 {[%emt 0:00:03]} O-O {[%emt 0:00:06]} 15. Re1 {[%emt 0:00:02]} Bf5 {[%emt 0:00:48]} 16. b3 {[%emt 0:00:46]} Nf6 {[%emt 0:00:19]} 17. Ned2 {[%emt 0:00:28]} (17. Nfd2 $11) 17... Bxd3 $15 {[%emt 0:00:35] [#] Threatens to win with ...e4.} 18. Nxe5 {[%emt 0:00:49]} Bf5 {[%emt 0:00:02]} 19. Qf3 {[%emt 0:00:13]} Qxf3 {[%emt 0:00:12]} 20. Ndxf3 {[%emt 0:00:04]} Ne4 {[%emt 0:00:25]} 21. Nxc6 {[%emt 0:00:24] Pair of Knights!} Bf6 {[%emt 0:00:19]} 22. Be5 $1 {[%emt 0:00:04]} Rfe8 {[%emt 0:00:22]} 23. Bxf6 {[%emt 0:00:46]} gxf6 {[%emt 0:00:00]} 24. b4 {[%emt 0:00:32]} Bd7 {[%emt 0:00:44]} 25. Na5 {[%emt 0:00:02]} cxb4 {[%emt 0:00:09] aiming for ...d3.} 26. Nxd4 {[%emt 0:00:01]} Nc3 {[%emt 0:00:02]} 27. Re3 {[%emt 0:00:02]} Rxe3 {[%emt 0:00:08]} 28. fxe3 {[%emt 0:00:01]} Rc8 {[%emt 0:00:05]} 29. a3 {[%emt 0:00:11]} bxa3 {[%emt 0:00:04]} 30. Rxa3 {[%emt 0:00:02]} Ne4 {[%emt 0:00:02][%cal Rc8c1]} 31. Nab3 {[%emt 0:00:07] Inhibits Rc1+.} Rc7 {[%emt 0:00:17]} 32. Ra5 {[%emt 0:00:10]} Nd6 {[%emt 0:00:23]} 33. Kf2 {[%emt 0:00:13]} Nc4 {[%emt 0:00:05]} 34. Rd5 {[%emt 0:00:22]} Ne5 {[%emt 0:00:00]} 35. h3 {[%emt 0:00:12]} Kf7 {[%emt 0:00:01]} 36. Ra5 {[%emt 0:00:18]} Nc4 {[%emt 0:00:10]} 37. Ra6 {[%emt 0:00:24]} Nb6 {[%emt 0:00:03]} 38. Nd2 {[%emt 0:00:12]} Kg6 {[%emt 0:00:13]} 39. N2f3 {[%emt 0:00:08]} Bc8 {[%emt 0:00:24] The position is equal.} 40. Nh4+ {[%emt 0:00:09]} Kf7 {[%emt 0:00:05]} 41. Ra2 {[%emt 0:00:10]} a6 {[%emt 0:00:08] Against Nb5} 42. Nhf5 {[%emt 0:00:14]} Nc4 {[%emt 0:00:17] Against Nd6+} 43. g4 {[%emt 0:00:53]} Bxf5 {[%emt 0:00:21]} 44. gxf5 $11 {[%emt 0:00:00][%mdl 4096] Endgame KRN-KRN} a5 {[%emt 0:00:03]} 45. Kf3 {[%emt 0:00:08]} Ra7 {[%emt 0:00:24]} 46. Nb5 {[%emt 0:01:30]} Ra6 {[%emt 0:00:23]} 47. Ra4 {[%emt 0:00:17]} Ne5+ {[%emt 0:00:24]} 48. Ke2 {[%emt 0:00:03]} Kg7 {[%emt 0:00:27]} 49. Nd4 {[%emt 0:00:21]} h5 {[%emt 0:00:25]} 50. Kf2 {[%emt 0:00:37]} Kf7 {[%emt 0:00:08]} 51. Kg3 {[%emt 0:00:05]} Ra8 {[%emt 0:00:09]} 52. Nb5 {[%emt 0:00:30]} Rg8+ {[%emt 0:00:14]} 53. Kf2 {[%emt 0:00:02]} Nd3+ {[%emt 0:00:04]} 54. Ke2 {[%emt 0:00:02]} Ne5 {[%emt 0:00:03]} 55. Rxa5 {[%emt 0:00:36] Ra7+ is the strong threat.} Rg2+ {[%emt 0:00:01]} 56. Kf1 {[%emt 0:00:09]} Rg3 {[%emt 0:00:20][%csl LRe3,LRh3]} 57. Ra7+ {[%emt 0:00:39]} Kf8 {[%emt 0:00:15]} 58. Ra8+ {[%emt 0:00:35]} Kg7 {[%emt 0:00:19]} 59. Nd4 {[%emt 0:00:15]} Rxh3 {[%emt 0:00:11]} 60. Ne6+ {[%emt 0:00:10]} Kf7 {[%emt 0:00:02]} 61. Ra7+ {[%emt 0:00:05]} Kg8 {[%emt 0:00:04]} 62. e4 {[%emt 0:00:42]} Re3 {[%emt 0:00:06]} 63. Ng7 {[%emt 0:00:04]} Rxe4 {[%emt 0:00:13]} 64. Nxh5 {[%emt 0:00:02]} Kf8 {[%emt 0:00:10]} 65. Kf2 {[%emt 0:00:23]} Rh4 {[%emt 0:00:04]} 66. Nxf6 {[%emt 0:00:07]} Rf4+ {[%emt 0:00:02]} 67. Ke3 {[%emt 0:00:03]} Rxf5 {[%emt 0:00:01]} 68. Ke4 {[%emt 0:00:01]} Rxf6 {[%emt 0:00:01]} 69. Kxe5 {[%emt 0:00:00]} Rf7 {[%emt 0:00:00]} 70. Rxf7+ {[%emt 0:00:02]} Kxf7 {[%emt 0:00:00] Weighted Error Value: White=0.07 (flawless) /Black=0.07 (flawless)} 1/2-1/2

[Event "FTX Crypto Cup MCCT 2022"]
[Site "Miami"]
[Date "2022.08.11"]
[Round "5.1"]
[White "Duda, Jan-Krzysztof"]
[Black "Carlsen, Magnus"]
[Result "1-0"]
[ECO "E11"]
[WhiteElo "2750"]
[BlackElo "2864"]
[Annotator "TA"]
[PlyCount "75"]
[EventDate "2022.08.10"]
[EventType "tourn"]
[EventCountry "USA"]
[SourceTitle "playchess.com"]
[Source "ChessBase"]
[SourceQuality "1"]
[TimeControl "900+10"]

{[%evp 10,75,20,18,22,24,28,15,46,46,28,59,57,62,68,35,44,43,36,36,36,36,58,68,73,16,86,88,109,110,109,106,116,30,30,32,29,40,29,44,52,14,65,0,0,0,0,0,258,258,258,258,771,771,724,671,1472,1453,1329,1296,1744,1756,6127,5612,3457,2507,1379,1130]} 1. d4 {[%emt 0:00:00]} Nf6 {[%emt 0:00:00]} 2. c4 {[%emt 0:00:02]} e6 {[%emt 0:00:09]} 3. Nf3 {[%emt 0:00:02]} Bb4+ {[%emt 0:00:03]} 4. Bd2 {[%emt 0:00:05]} Bxd2+ {[%emt 0:00:03]} 5. Qxd2 {[%emt 0:00:13]} d5 {[%emt 0:00:03]} 6. g3 {[%emt 0:00:12]} c6 {[%emt 0:00:43] E11: Bogo-Indian.} 7. Bg2 {[%emt 0:00:03]} Nbd7 {[%emt 0:00:05]} 8. O-O {[%emt 0:00:08]} dxc4 {[%emt 0:00:02] The position is equal.} 9. a4 {[%emt 0:00:18]} O-O {[%emt 0:00:38] [#]} 10. a5 $146 {[%emt 0:02:01]} ({Predecessor:} 10. Na3 e5 11. Nxc4 exd4 12. Qxd4 Nb6 13. Nd6 Nbd5 14. Nxc8 Qxc8 15. b4 a5 16. b5 {1-0 (42) Ghaem Maghami,E (2561)-Hakemi,A (2316) Teheran 2021}) 10... b5 {[%emt 0:02:04]} 11. axb6 $1 {[%emt 0:01:31]} Qxb6 {[%emt 0:00:03]} 12. Rc1 {[%emt 0:01:02]} Rb8 {[%emt 0:00:20]} 13. Na3 {[%emt 0:00:21]} Ba6 {[%emt 0:01:37]} 14. Nxc4 {[%emt 0:00:12]} (14. Qd1 {looks sharper.} Qxb2 15. Nxc4 Bxc4 16. Rxc4 Rfc8 17. Ne1) 14... Bxc4 {[%emt 0:00:03]} 15. Rxc4 {[%emt 0:00:00]} Qxb2 {[%emt 0:00:09]} 16. Qxb2 {[%emt 0:01:20]} Rxb2 {[%emt 0:00:03]} 17. Bf1 {[%emt 0:00:24]} ({White should play} 17. Kf1 $16) 17... Rc8 {[%emt 0:00:45]} (17... Ra8 $1 $11 {remains equal.}) 18. Rxa7 $16 {[%emt 0:00:09]} g6 {[%emt 0:00:08]} 19. Rc1 {[%emt 0:01:05][%cal Og3g4]} h5 {[%emt 0:04:46]} 20. e4 {[%emt 0:03:23]} Rd8 {[%emt 0:00:03]} 21. Rxc6 {[%emt 0:01:19]} ({Better is} 21. Ng5 $16) 21... Nxe4 $11 {[%emt 0:00:06]} 22. Rcc7 {[%emt 0:00:01]} Rxf2 {[%emt 0:00:10]} 23. Ng5 {[%emt 0:00:05][%mdl 64] Deflection} Nxg5 {[%emt 0:00:55]} 24. Kxf2 {[%emt 0:00:03]} Nf6 {[%emt 0:00:01]} 25. Ke2 {[%emt 0:01:51]} Nd5 {[%emt 0:01:58]} ({Black should try} 25... Rxd4 $11 26. Bg2 Ng4) 26. Rd7 {[%emt 0:00:08]} (26. Rc2 $14) 26... Rc8 $1 {[%emt 0:00:35] White must now prevent ...Rc2+.} 27. h4 {[%emt 0:01:21]} Rc2+ {[%emt 0:00:03]} 28. Kd3 {[%emt 0:00:00]} Nb4+ {[%emt 0:00:02][%mdl 8192] Pair of Knights!} (28... Rc3+ $11 29. Ke2 Rc2+ 30. Kd3 Rc3+ 31. Ke2 Rc2+) 29. Ke3 $18 {[%emt 0:00:03]} Rc3+ {[%emt 0:00:45]} 30. Kf4 {[%emt 0:00:13]} Rf3+ $2 {[%emt 0:01:12]} (30... Nf3 31. Bg2 (31. Rxf7 $2 {is a self mate.} Nd5+ 32. Ke4 Re3#) 31... Nd3+ 32. Kxf3 Ne5+ 33. Kf4 Nxd7) 31. Kxg5 {[%emt 0:00:03][%cal Og5h6] White is clearly winning.} Kg7 {[%emt 0:00:00] [#]} 32. Bh3 $1 {[%emt 0:00:11] Bxe6 would kill now.} Nd3 {[%emt 0:00:04] [#]} 33. g4 {[%emt 0:00:18][%cal Og4h5]} Nf2 {[%emt 0:00:44] [#]} 34. gxh5 $1 {[%emt 0:00:07] Intending h6+ and mate.} Nxh3+ {[%emt 0:00:09]} (34... Ne4+ 35. Kg4) 35. Kg4 {[%emt 0:00:03]} Ng1 {[%emt 0:00:01]} 36. hxg6 {[%emt 0:00:40]} Kxg6 {[%emt 0:00:04]} 37. h5+ {[%emt 0:00:00]} Kg7 {[%emt 0:00:07]} 38. Ra1 {[%emt 0:00:01] Weighted Error Value: White=0.15 (very precise) /Black=0.33} 1-0

[Event "FTX Crypto Cup MCCT 2022"]
[Site "Miami"]
[Date "2022.08.11"]
[Round "5.1"]
[White "Le, Quang Liem"]
[Black "Praggnanandhaa R"]
[Result "1/2-1/2"]
[ECO "D20"]
[WhiteElo "2722"]
[BlackElo "2648"]
[Annotator "TA"]
[PlyCount "82"]
[EventDate "2022.08.10"]
[EventType "tourn"]
[EventCountry "USA"]
[SourceTitle "playchess.com"]
[Source "ChessBase"]
[SourceQuality "1"]
[TimeControl "900+10"]

{[%evp 16,82,20,9,21,0,0,0,0,0,0,0,29,0,9,16,12,14,13,11,24,5,47,52,38,52,51,50,49,53,56,42,54,53,65,9,9,9,18,9,14,2,2,2,2,0,0,0,0,0,0,0,0,0,0,0,0,0,0,0,0,0,0,0,0,0,0,0,0]} 1. d4 {[%emt 0:00:00]} d5 {[%emt 0:00:00][%cal Bd7d5,Bd5c4][%mdl 32]} 2. c4 {[%emt 0:00:04]} dxc4 {[%emt 0:00:02]} 3. e4 {[%emt 0:00:05]} e5 {[%emt 0:00:02]} 4. Nf3 {[%emt 0:00:02]} Bb4+ {[%emt 0:00:01]} 5. Bd2 {[%emt 0:00:03]} Bxd2+ {[%emt 0:00:01]} 6. Nbxd2 {[%emt 0:00:00]} exd4 {[%emt 0:00:03]} 7. Bxc4 {[%emt 0:00:02]} Nc6 {[%emt 0:00:01]} 8. O-O {[%emt 0:00:01]} Qf6 {[%emt 0:00:02]} 9. b4 {[%emt 0:00:01][%cal Oe4e5,Bb2b4,Bb4b5][%mdl 1056] White has compensation.} Nge7 {[%emt 0:00:16] is now debated instead of 9...a6. D20: Queen's Gambit Accepted: 3 e3 and 3 e4.} 10. b5 {[%emt 0:00:17]} Na5 {[%emt 0:00:26]} 11. Bd3 {[%emt 0:00:03]} O-O {[%emt 0:00:26]} 12. e5 {[%emt 0:00:29]} Qb6 {[%emt 0:00:48]} 13. Re1 {[%emt 0:00:13] [#]} h6 $146 {[%emt 0:01:21]} ({Predecessor:} 13... Ng6 14. Rc1 h6 15. h3 Nf4 16. Bf1 c6 17. Ne4 cxb5 18. Nxd4 a6 19. Qd2 Ng6 {½-½ (32) Krzyzanowski,A (2353)-Lins,T (2460) ICCF email 2019}) 14. Rc1 {[%emt 0:00:31][%cal Ba1c1,Bc1c4,Bc4c7][%mdl 32]} c5 {[%emt 0:02:24]} 15. Ne4 {[%emt 0:03:52]} c4 {[%emt 0:02:01]} 16. Bxc4 {[%emt 0:00:04]} Nxc4 {[%emt 0:00:06]} 17. Rxc4 {[%emt 0:00:00]} Bg4 {[%emt 0:02:05]} 18. Nd6 {[%emt 0:00:55]} a6 {[%emt 0:00:58]} 19. Qxd4 {[%emt 0:01:34]} Qxd4 {[%emt 0:00:03]} 20. Nxd4 {[%emt 0:00:00]} axb5 {[%emt 0:00:01]} 21. Rc7 {[%emt 0:02:01]} Nc6 {[%emt 0:00:59]} 22. N4xb5 {[%emt 0:00:21] Pair of Knights!} Rxa2 {[%emt 0:00:17][%cal Oc6e5]} 23. h3 {[%emt 0:00:03]} ({Much weaker is} 23. Rxb7 $6 Nxe5 24. h3 Nd3 $11) 23... Be6 {[%emt 0:01:12]} 24. Nxb7 {[%emt 0:00:02]} Rc8 {[%emt 0:00:21]} 25. N7d6 {[%emt 0:00:25]} (25. Nc5 $14 Rxc7 26. Nxc7) 25... Rxc7 $11 {[%emt 0:00:20] The position is equal.} 26. Nxc7 {[%emt 0:00:00]} g5 {[%emt 0:00:23]} 27. Nxe6 {[%emt 0:04:08]} (27. Re4 {keeps more tension.} Kg7 28. h4 Kg6 29. g3) 27... fxe6 {[%emt 0:00:00][%mdl 4096] Endgame KRN-KRN} 28. Nc4 {[%emt 0:00:02]} Kg7 {[%emt 0:01:26]} 29. Rd1 {[%emt 0:00:41] [#] And now Rd7+ would win.} Ra4 {[%emt 0:00:20]} 30. Rc1 {[%emt 0:00:42] Hoping for Nb6.} Nd4 {[%emt 0:00:07] Strongly threatening ...Ne2+.} 31. Kh2 {[%emt 0:00:09]} Ne2 {[%emt 0:00:18]} 32. Re1 {[%emt 0:00:17]} Nf4 {[%emt 0:00:12]} 33. Nd6 {[%emt 0:00:23]} Nd3 {[%emt 0:01:34]} 34. Re2 {[%emt 0:00:36]} Ra5 {[%emt 0:00:07]} 35. g3 {[%emt 0:01:21]} Rxe5 {[%emt 0:00:21]} 36. Rxe5 {[%emt 0:00:13]} Nxe5 {[%emt 0:00:01] KN-KN} 37. Kg2 {[%emt 0:00:01]} Kf6 {[%emt 0:00:05]} 38. Ne4+ {[%emt 0:00:04]} Kf5 {[%emt 0:00:02]} 39. Nd6+ {[%emt 0:00:02]} Kf6 {[%emt 0:00:00]} 40. Ne4+ {[%emt 0:00:02]} Kf5 {[%emt 0:00:01]} 41. Nd6+ {[%emt 0:00:01]} Kf6 {[%emt 0:00:00] Weighted Error Value: White=0.07 (flawless) /Black=0.04 (flawless)} 1/2-1/2

[Event "FTX Crypto Cup MCCT 2022"]
[Site "Miami"]
[Date "2022.08.11"]
[Round "5.1"]
[White "Niemann, Hans Moke"]
[Black "Firouzja, Alireza"]
[Result "1/2-1/2"]
[ECO "E04"]
[WhiteElo "2688"]
[BlackElo "2793"]
[Annotator "TA"]
[PlyCount "89"]
[EventDate "2022.08.10"]
[EventType "tourn"]
[EventCountry "USA"]
[SourceTitle "playchess.com"]
[Source "ChessBase"]
[SourceQuality "1"]
[TimeControl "900+10"]

{[%evp 18,89,27,17,20,13,16,11,12,0,2,0,0,0,0,-2,-6,-7,-2,-13,-2,-6,-4,-5,0,0,0,0,0,-9,-6,-11,-7,-8,0,0,0,0,0,-4,0,0,0,0,0,0,0,0,0,0,3,0,0,0,0,0,0,0,0,0,0,0,0,0,0,0,0,0,0,0,0,0,0,0]} 1. d4 {[%emt 0:00:00]} Nf6 {[%emt 0:00:00]} 2. c4 {[%emt 0:00:05]} e6 {[%emt 0:00:03]} 3. Nf3 {[%emt 0:00:03]} d5 {[%emt 0:00:08]} 4. g3 {[%emt 0:00:02]} dxc4 {[%emt 0:00:18]} 5. Bg2 {[%emt 0:00:02]} c5 {[%emt 0:00:01]} 6. O-O {[%emt 0:00:02]} Nc6 {[%emt 0:00:01]} 7. dxc5 {[%emt 0:00:01]} Qxd1 {[%emt 0:00:03]} 8. Rxd1 {[%emt 0:00:01]} Bxc5 {[%emt 0:00:00]} 9. Nbd2 {[%emt 0:00:02]} c3 {[%emt 0:00:02]} 10. bxc3 {[%emt 0:00:00]} O-O {[%emt 0:00:01] The position is equal. E04: Open Catalan: 5 Nf3.} 11. c4 {[%emt 0:00:02]} Rd8 {[%emt 0:00:02]} 12. Bb2 {[%emt 0:00:28]} Bd7 {[%emt 0:00:01]} 13. Ne1 {[%emt 0:01:17]} Rac8 {[%emt 0:00:48]} 14. Nb3 {[%emt 0:00:23]} Be7 {[%emt 0:00:06]} 15. Nd3 {[%emt 0:00:01]} b6 {[%emt 0:00:43]} 16. c5 {[%emt 0:00:44]} Be8 {[%emt 0:00:52]} 17. cxb6 {[%emt 0:00:38]} axb6 {[%emt 0:00:02]} 18. Rac1 {[%emt 0:00:01]} Nd5 {[%emt 0:00:19]} 19. Nd4 {[%emt 0:00:30]} Nxd4 {[%emt 0:01:19]} 20. Bxd4 {[%emt 0:00:04]} Bf6 {[%emt 0:00:38] [#] aiming for ...Rxc1.} 21. Bxf6 {[%emt 0:00:54]} Nxf6 {[%emt 0:00:02] [#]} 22. Bf3 $146 {[%emt 0:01:08]} ({Predecessor:} 22. Bb7 Rxc1 23. Rxc1 Bb5 24. Rb1 Bxd3 25. exd3 Rd6 26. d4 Kf8 27. Kf1 Ke7 28. Ke2 Kd7 29. Bf3 Kc7 30. Rc1+ Kd7 31. Rb1 Kc7 32. Rc1+ Kd7 {½-½ (32) Zaragatski,I (2502)-Cyborowski,L (2524) Germany 2017}) 22... Kf8 {[%emt 0:00:24]} 23. Rb1 {[%emt 0:01:10]} b5 {[%emt 0:00:23]} 24. Rdc1 {[%emt 0:00:28]} Ke7 {[%emt 0:00:24]} 25. Kf1 {[%emt 0:00:08]} Rxc1+ {[%emt 0:01:10]} 26. Rxc1 {[%emt 0:00:01]} Rd7 {[%emt 0:00:00]} 27. Nb4 {[%emt 0:00:48]} Ra7 {[%emt 0:00:07]} 28. Rc3 {[%emt 0:00:08]} Kd6 {[%emt 0:00:14]} 29. Ke1 {[%emt 0:00:20]} Rc7 {[%emt 0:00:38]} 30. Rd3+ {[%emt 0:00:20]} Ke7 {[%emt 0:00:04]} 31. Kd2 {[%emt 0:00:04]} Nd7 {[%emt 0:01:50]} 32. Rc3 {[%emt 0:00:23]} Rxc3 {[%emt 0:00:21]} 33. Kxc3 $11 {[%emt 0:00:00][%mdl 4096] Endgame KBN-KBN} Kd6 {[%emt 0:00:41]} 34. Nd3 {[%emt 0:00:15]} e5 {[%emt 0:00:25]} 35. e3 {[%emt 0:00:10]} f5 {[%emt 0:00:12] [#] Strongly threatening ...e4.} 36. Be2 {[%emt 0:00:06]} Nf6 {[%emt 0:00:02]} 37. a3 {[%emt 0:00:15]} Bf7 {[%emt 0:00:23]} 38. f4 {[%emt 0:00:20]} exf4 {[%emt 0:00:09]} 39. exf4 {[%emt 0:00:32]} Bc4 {[%emt 0:00:11]} 40. Kd4 {[%emt 0:00:06]} Ne8 {[%emt 0:00:50]} 41. Nc1 {[%emt 0:00:29]} Bxe2 {[%emt 0:00:03]} 42. Nxe2 {[%emt 0:00:01]} Nc7 {[%emt 0:00:02]} 43. Kd3 {[%emt 0:00:28]} g6 {[%emt 0:00:38]} 44. Nd4 {[%emt 0:00:08]} Kd5 {[%emt 0:00:36]} 45. Nf3 {[%emt 0:00:08] An uneventful encounter.  Weighted Error Value: White=0.02 (flawless) /Black=0.01 (flawless)} 1/2-1/2

[Event "FTX Crypto Cup MCCT 2022"]
[Site "Miami"]
[Date "2022.08.11"]
[Round "5.2"]
[White "Carlsen, Magnus"]
[Black "Duda, Jan-Krzysztof"]
[Result "0-1"]
[ECO "C65"]
[WhiteElo "2864"]
[BlackElo "2750"]
[Annotator "TA"]
[PlyCount "68"]
[EventDate "2022.08.10"]
[EventType "tourn"]
[EventCountry "USA"]
[SourceTitle "playchess.com"]
[Source "ChessBase"]
[SourceQuality "1"]
[TimeControl "900+10"]

{[%evp 9,68,18,25,11,14,0,0,-1,20,11,9,0,21,20,27,7,27,41,43,0,0,-213,-202,-222,-207,-220,-212,-214,-187,-192,-188,-310,-235,-801,-787,-792,-316,-317,-326,-306,-243,-243,-236,-393,-388,-2579,-1156,-1025,-292,-1094,-1093,-994,-1065,-903,-895,-1208,-1200,-1107,-1093,-1101,-1014]} 1. e4 {[%emt 0:00:00]} e5 {[%emt 0:00:00]} 2. Nf3 {[%emt 0:00:12]} Nc6 {[%emt 0:00:02]} 3. Bb5 {[%emt 0:00:27]} Nf6 {[%emt 0:00:01]} 4. d3 {[%emt 0:00:02]} Bc5 {[%emt 0:00:02]} 5. Bxc6 {[%emt 0:00:00]} dxc6 {[%emt 0:00:01]} 6. Nbd2 {[%emt 0:00:01][%cal Bb1d2,Bd2f1,Bf1e3,Be3f5][%mdl 32] C65: Ruy Lopez: Berlin Defence (3...Nf6), unusual lines and 4 0-0 Bc5.} Nd7 {[%emt 0:00:01]} 7. Nf1 {[%emt 0:00:13]} O-O {[%emt 0:00:34]} 8. g4 {[%emt 0:00:03] The position is equal.} Re8 {[%emt 0:00:12]} 9. Ne3 {[%emt 0:00:22]} a5 {[%emt 0:00:16]} 10. Rg1 {[%emt 0:00:17]} Nf8 {[%emt 0:00:17]} 11. h4 {[%emt 0:00:17]} a4 {[%emt 0:00:34]} 12. Nf5 {[%emt 0:00:34] [#]} b5 $5 $146 {[%emt 0:02:09][%mdl 8] New and interesting.} ({Predecessor:} 12... Ne6 13. h5 Bd6 14. g5 a3 15. g6 fxg6 16. hxg6 h6 17. Bxh6 axb2 18. Rb1 gxh6 19. Nxh6+ Kg7 20. Nf5+ Kg8 21. Nh6+ Kg7 22. Nf5+ Kg8 23. Nh6+ {½-½ (23) Panitevsky,I (2523)-Welle,B (2498) ICCF email 2019}) 13. Bg5 {[%emt 0:00:51]} f6 {[%emt 0:00:39]} 14. Bd2 {[%emt 0:00:09]} (14. Be3 $5 {[%cal Re3c5]} Bb6 15. h5 $11) 14... Kh8 {[%emt 0:00:35]} 15. g5 $2 {[%emt 0:03:18] White is on the road to losing.} (15. h5 $11 {and White has nothing to worry.}) 15... Bxf5 $19 {[%emt 0:00:34]} 16. exf5 {[%emt 0:00:02] [#]} e4 $1 {[%emt 0:01:03]} 17. dxe4 {[%emt 0:00:04]} Rxe4+ {[%emt 0:00:00]} 18. Kf1 {[%emt 0:00:01] And now gxf6 would win.} Qd5 {[%emt 0:00:55]} 19. gxf6 {[%emt 0:02:00]} gxf6 {[%emt 0:00:00]} 20. Bc3 {[%emt 0:04:32]} (20. Be3 {was forced.} Qxf5 21. Bxc5 Qh3+ 22. Rg2) 20... Qxf5 {[%emt 0:00:05] The board is on fire.} 21. Rg5 $2 {[%emt 0:00:03]} (21. Rg3) 21... Qh3+ {[%emt 0:00:03]} 22. Kg1 {[%emt 0:00:01]} Rg4+ {[%emt 0:00:29]} (22... Rf4 $142 23. Qd3 Ne6) 23. Rxg4 {[%emt 0:00:02]} Qxg4+ {[%emt 0:00:00]} 24. Kh1 {[%emt 0:00:01]} Nd7 {[%emt 0:02:31] [#] ( -> ...Rg8)} ({And not} 24... Bxf2 25. Bxf6+ Kg8 26. Nh2 Qe4+ 27. Qf3 Qxf3+ 28. Nxf3 $17) 25. Nh2 {[%emt 0:00:44]} Qxh4 $40 {[%emt 0:00:04][%mdl 128] Black goes for the king.} 26. Qxd7 $2 {[%emt 0:00:46]} (26. Qg4 Qxg4 27. Nxg4) 26... Bd6 {[%emt 0:00:04][%csl Gd6][%cal Rh4h2]} 27. Kg2 {[%emt 0:00:46]} (27. Bxf6+ Qxf6 28. Rg1) 27... Qxh2+ {[%emt 0:00:23]} (27... Rg8+ $142 28. Ng4 Rxg4+ 29. Qxg4 Qxg4+ 30. Kf1 Kg7) 28. Kf1 {[%emt 0:00:01]} Qh1+ {[%emt 0:00:33]} 29. Ke2 {[%emt 0:00:01]} Qe4+ {[%emt 0:00:00] Black is clearly winning.} 30. Kf1 {[%emt 0:00:07]} Qc4+ {[%emt 0:01:06]} 31. Ke1 {[%emt 0:00:03]} Rf8 {[%emt 0:00:11] Threatens to win with ...b4.} 32. Rd1 {[%emt 0:00:45]} Qe4+ {[%emt 0:00:12]} 33. Kf1 {[%emt 0:00:03]} Qh1+ {[%emt 0:00:01]} 34. Ke2 {[%emt 0:00:33]} Qh5+ {[%emt 0:00:00] Weighted Error Value: White=0.97/Black=0.40} 0-1